bitfinex/quotes_BTCUSD_20241116
["timestamp","ask_amount","ask_price","bid_price","bid_amount"]
[1731738942681,0.219339,91183.0,91175.0,0.0008578]
[1731738942924,0.00776033,91176.0,91175.0,0.0008578]
[1731738943155,0.109676,91177.0,91175.0,0.0008578]
[1731738943387,0.00776033,91176.0,91175.0,0.0008578]
[1731738943628,0.00776033,91176.0,91175.0,0.1213578]
[1731738943875,0.219326,91189.0,91175.0,0.1213578]
[1731738944120,0.109664,91187.0,91175.0,0.1213578]
[1731738944553,0.00777427,91188.0,91175.0,0.1213578]
[1731738944554,0.00777221,91186.0,91175.0,0.1213578]
[1731738945024,0.00777221,91186.0,91175.0,0.2030452]
[1731738945251,0.00777221,91186.0,91178.0,0.109674]
[1731738945467,0.109659,91192.0,91178.0,0.109674]
[1731738945672,0.00777345,91185.0,91178.0,0.109674]
[1731738945877,0.109659,91192.0,91178.0,0.109674]
[1731738946123,0.01862966,91195.0,91182.0,0.10967]
[1731738946348,0.219302,91199.0,91176.0,0.219355]
[1731738946581,0.00779124,91194.0,91180.0,0.109672]
[1731738946782,0.128293,91194.0,91180.0,0.109672]
[1731738946933,0.02642621,91193.0,91180.0,0.109672]
[1731738947141,0.00779021,91193.0,91180.0,0.109672]
[1731738947664,0.00779021,91193.0,91179.0,0.109673]
[1731738948263,0.12771131,91192.0,91179.0,0.109673]
[1731738948439,0.10906255,91192.0,91179.0,0.109673]
[1731738948682,0.0755,91188.0,91175.0,0.0458578]
[1731738948877,0.10906255,91187.0,91175.0,0.0458578]
[1731738949136,0.00778351,91186.0,91176.0,0.109677]
[1731738949344,0.00778351,91186.0,91175.0,0.0458578]
[1731738949345,0.10906255,91185.0,91175.0,0.0458578]
[1731738949461,0.11684503,91185.0,91175.0,0.0458578]
[1731738949869,0.11684503,91185.0,91176.0,0.109677]
[1731738950170,0.11684503,91185.0,91175.0,0.1555358]
[1731738950971,0.01866415,91184.0,91176.0,0.109677]
[1731738951245,0.12773923,91183.0,91175.0,0.0458578]
[1731738951447,0.02645607,91182.0,91176.0,0.109677]
[1731738951662,0.10906255,91181.0,91177.0,0.109676]
[1731738951872,0.00777732,91180.0,91177.0,0.109676]
[1731738952080,0.00777732,91180.0,91175.0,0.1555358]
[1731738952300,0.10906255,91181.0,91175.0,0.0458578]
[1731738953598,0.10906255,91181.0,91176.0,0.109677]
[1731738954026,0.00777732,91180.0,91175.0,0.0458578]
[1731738954253,0.10906255,91181.0,91176.0,0.109677]
[1731738954470,0.10906255,91181.0,91178.0,0.109675]
[1731738954682,0.00777732,91180.0,91178.0,0.109675]
[1731738954888,0.00777732,91180.0,91175.0,0.0458578]
[1731738955133,0.10906255,91181.0,91176.0,0.109677]
[1731738955548,0.10906255,91181.0,91175.0,0.0458578]
[1731738956187,0.00777732,91180.0,91175.0,0.0458578]
[1731738957285,0.00777732,91180.0,91175.0,0.0008578]
[1731738957487,0.10906255,91179.0,91175.0,0.0008578]
[1731738957782,0.109677,91176.0,91175.0,0.0008578]
[1731738958020,0.23745489,91176.0,91175.0,0.0008578]
[1731738958267,0.28528972,91176.0,91175.0,0.0008578]
[1731738959833,0.25534123,91176.0,91175.0,0.0008578]
[1731738960300,0.28529992,91176.0,91175.0,0.0008578]
[1731738960507,0.17562292,91176.0,91175.0,0.0008578]
[1731738960735,0.17562292,91176.0,91175.0,0.0825452]
[1731738960736,0.14566423,91176.0,91175.0,0.0825452]
[1731738961166,0.03660168,91176.0,91175.0,0.0825452]
[1731738961369,0.02648795,91176.0,91175.0,0.1105368]
[1731738961605,0.01871534,91176.0,91175.0,0.0008578]
[1731738961806,0.16471661,91183.0,91175.0,0.0008578]
[1731738962018,0.0187327,91176.0,91175.0,0.0008578]
[1731738962226,0.12779525,91176.0,91175.0,0.0008578]
[1731738962429,0.13555574,91176.0,91175.0,0.0008578]
[1731738962639,0.14568029,91176.0,91175.0,0.0008578]
[1731738963087,0.13555574,91176.0,91175.0,0.0825452]
[1731738963959,0.13555574,91176.0,91175.0,0.1922242]
[1731738964258,0.11682304,91176.0,91175.0,0.0825452]
[1731738965368,0.00776049,91176.0,91175.0,0.1922242]
[1731738965584,0.0470158,91196.0,91175.0,0.3019022]
[1731738965585,0.01012803,91190.0,91175.0,0.3019022]
[1731738965790,0.0470158,91196.0,91175.0,0.3019022]
[1731738965791,0.16471661,91184.0,91183.0,0.109669]
[1731738965994,0.18345732,91184.0,91183.0,0.109669]
[1731738966217,0.02651621,91184.0,91180.0,0.109672]
[1731738966447,0.02651621,91184.0,91178.0,0.219351]
[1731738966448,0.0077755,91184.0,91178.0,0.219351]
[1731738966701,0.10906255,91189.0,91176.0,0.329032]
[1731738966900,0.10906255,91189.0,91175.0,0.0008578]
[1731738966901,0.02887138,91188.0,91175.0,0.0008578]
[1731738967121,0.00778106,91188.0,91187.0,0.109664]
[1731738967323,0.02887103,91188.0,91187.0,0.109664]
[1731738967736,0.13793358,91188.0,91187.0,0.109664]
[1731738968031,0.14571464,91188.0,91187.0,0.109664]
[1731738969057,0.14571455,91188.0,91187.0,0.109664]
[1731738969264,0.14571455,91188.0,91185.0,0.109667]
[1731738969606,0.02887094,91187.0,91186.0,0.109665]
[1731738970055,0.03665097,91187.0,91186.0,0.109665]
[1731738970273,0.03665097,91187.0,91183.0,0.3010254]
[1731738970274,0.0017158,91196.0,91190.0,0.10966]
[1731738970536,0.13793265,91195.0,91190.0,0.10966]
[1731738970761,0.11685082,91195.0,91194.0,0.109656]
[1731738970964,0.02653315,91195.0,91194.0,0.109656]
[1731738971168,0.01874488,91195.0,91194.0,0.109656]
[1731738971574,0.0017158,91196.0,91194.0,0.109656]
[1731738971845,0.11077835,91196.0,91194.0,0.109656]
[1731738972282,0.00779733,91195.0,91194.0,0.109656]
[1731738972479,0.00779733,91195.0,91186.0,0.0816874]
[1731738972698,0.00779733,91195.0,91192.0,0.109658]
[1731738972904,0.11077835,91196.0,91194.0,0.109656]
[1731738973939,0.11077835,91196.0,91193.0,0.109656]
[1731738974151,0.00781443,91195.0,91193.0,0.109656]
[1731738974595,0.11077835,91196.0,91186.0,0.04366913]
[1731738974596,0.0775,91192.0,91186.0,0.04366913]
[1731738974719,0.10906255,91191.0,91186.0,0.15333413]
[1731738974915,0.10906255,91191.0,91186.0,0.109665]
[1731738974916,0.11687286,91191.0,91186.0,0.109665]
[1731738975329,0.28158947,91191.0,91178.0,0.005]
[1731738975542,0.22653286,91191.0,91180.0,0.219346]
[1731738975821,0.109662,91189.0,91181.0,0.109671]
[1731738976039,0.10906255,91188.0,91181.0,0.109671]
[1731738976293,0.11686977,91188.0,91181.0,0.109671]
[1731738976468,0.11686977,91188.0,91176.0,0.219355]
[1731738976674,0.11686977,91188.0,91175.0,0.15517526]
[1731738976675,0.109669,91184.0,91175.0,0.15517526]
[1731738976892,0.10906255,91184.0,91177.0,0.109676]
[1731738977100,0.10906255,91183.0,91178.0,0.109675]
[1731738977313,0.11686462,91183.0,91178.0,0.109675]
[1731738977518,0.11686462,91183.0,91175.0,0.04549726]
[1731738977697,0.11686462,91183.0,91178.0,0.109674]
[1731738977895,0.11686462,91183.0,91175.0,0.04549726]
[1731738977896,0.11686462,91183.0,91177.0,0.219353]
[1731738978152,0.11686462,91183.0,91182.0,0.10967]
[1731738978499,0.10906255,91183.0,91182.0,0.10967]
[1731738978908,0.11686462,91183.0,91182.0,0.10967]
[1731738979036,0.10906255,91183.0,91182.0,0.10967]
[1731738979442,0.11686462,91183.0,91182.0,0.10967]
[1731738980504,0.11686462,91183.0,91182.0,0.10952671]
[1731738982059,0.10906255,91183.0,91182.0,0.10952671]
[1731738983100,0.0775,91192.0,91177.0,0.0816874]
[1731738983321,0.0017158,91196.0,91193.0,0.109657]
[1731738983322,0.16471661,91194.0,91193.0,0.109657]
[1731738983959,0.10906255,91195.0,91194.0,0.109656]
[1731738985528,0.1160839,91195.0,91194.0,0.109656]
[1731738985735,0.1160839,91195.0,91192.0,0.109657]
[1731738986234,0.1160839,91195.0,91189.0,0.219323]
[1731738986461,0.1160839,91195.0,91194.0,0.109656]
[1731738986673,0.1160839,91195.0,91184.0,0.219336]
[1731738987130,0.1160839,91195.0,91180.0,0.005]
[1731738987341,0.1160839,91195.0,91191.0,0.109659]
[1731738987546,0.0017144,91194.0,91188.0,0.219325]
[1731738987755,0.0017144,91194.0,91181.0,0.0008572]
[1731738987969,0.10906255,91193.0,91188.0,0.109662]
[1731738988414,0.00701826,91192.0,91188.0,0.109662]
[1731738988624,0.10906255,91191.0,91188.0,0.109662]
[1731738989037,0.0070162,91190.0,91188.0,0.109662]
[1731738989243,0.11607875,91190.0,91188.0,0.109662]
[1731738989445,0.11607875,91190.0,91183.0,0.219339]
[1731738989446,0.11607875,91190.0,91186.0,0.109665]
[1731738989692,0.11607875,91190.0,91182.0,0.219341]
[1731738989920,0.11607875,91190.0,91185.0,0.219334]
[1731738990121,0.11607875,91190.0,91187.0,0.109664]
[1731738990330,0.10906255,91189.0,91184.0,0.109667]
[1731738990533,0.0802,91188.0,91182.0,0.219341]
[1731738990741,0.0802,91188.0,91185.0,0.109666]
[1731738990951,0.08721414,91188.0,91185.0,0.109666]
[1731738991432,0.08721414,91188.0,91186.0,0.109665]
[1731738992473,0.08721414,91188.0,91181.0,0.1105282]
[1731738992623,0.08721414,91188.0,91181.0,0.0008572]
[1731738992828,0.08721414,91188.0,91182.0,0.10967]
[1731738993040,0.08721414,91188.0,91183.0,0.219339]
[1731738993213,0.08721414,91188.0,91187.0,0.109664]
[1731738993637,0.00701414,91188.0,91187.0,0.109664]
[1731738994016,0.0017144,91194.0,91193.0,0.109657]
[1731738997011,0.0017144,91194.0,91193.0,0.15359889]
[1731738997889,0.0017144,91194.0,91190.0,0.0816874]
[1731738998109,0.0017144,91194.0,91193.0,0.109657]
[1731738999064,0.0017144,91194.0,91193.0,0.166657]
[1731739003339,0.0017144,91194.0,91193.0,0.247957]
[1731739009947,0.00154992,91194.0,91193.0,0.247957]
[1731739011191,0.00154992,91194.0,91193.0,0.71170695]
[1731739011400,0.00154992,91194.0,91193.0,0.63087675]
[1731739011595,0.00154992,91194.0,91193.0,0.71256415]
[1731739012082,0.00154992,91194.0,91193.0,0.63087675]
[1731739013220,0.00154992,91194.0,91193.0,0.71256415]
[1731739013635,0.00154992,91194.0,91193.0,0.85985469]
[1731739014315,0.00154992,91194.0,91193.0,0.71256415]
[1731739014515,0.00154992,91194.0,91193.0,0.81071529]
[1731739014719,0.00154992,91194.0,91193.0,0.81271529]
[1731739014917,0.00154992,91194.0,91193.0,0.71456415]
[1731739015392,0.00154992,91194.0,91193.0,0.86178884]
[1731739015834,0.00154992,91194.0,91193.0,0.55956415]
[1731739016350,0.00154992,91194.0,91193.0,0.66922115]
[1731739017512,0.00154992,91194.0,91193.0,0.76733259]
[1731739017726,0.00154992,91194.0,91193.0,0.66922115]
[1731739017968,0.16471661,91204.0,91203.0,0.359645]
[1731739018177,0.16471661,91204.0,91203.0,0.63208235]
[1731739018583,0.0815,91222.0,91215.0,0.109631]
[1731739018796,0.0815,91222.0,91215.0,0.1913184]
[1731739019223,0.0815,91222.0,91221.0,0.109623]
[1731739019451,0.0815,91222.0,91221.0,0.1913104]
[1731739020521,0.0463,91226.0,91225.0,0.109619]
[1731739021374,0.0463,91226.0,91225.0,0.1913064]
[1731739022510,0.0017152,91237.0,91221.0,0.04525226]
[1731739022511,0.0832,91225.0,91221.0,0.04525226]
[1731739022717,0.0458,91224.0,91223.0,0.109621]
[1731739022941,0.05732827,91224.0,91223.0,0.109621]
[1731739023151,0.05732827,91224.0,91220.0,0.109624]
[1731739023376,0.05732827,91224.0,91223.0,0.109621]
[1731739023578,0.0458,91224.0,91223.0,0.109621]
[1731739024034,0.0458,91224.0,91221.0,0.109623]
[1731739024275,0.0832,91221.0,91214.0,0.219264]
[1731739024496,0.129,91221.0,91220.0,0.109625]
[1731739025621,0.005,91225.0,91193.0,0.34888801]
[1731739025821,0.0017144,91226.0,91196.0,0.24640401]
[1731739025822,0.129,91213.0,91196.0,0.24640401]
[1731739026049,0.0832,91210.0,91196.0,0.0816874]
[1731739026262,0.0832,91199.0,91195.0,0.109654]
[1731739026470,0.19226255,91199.0,91194.0,0.109655]
[1731739026717,0.19226255,91199.0,91198.0,0.109651]
[1731739027394,0.19226255,91199.0,91195.0,0.21931]
[1731739027395,0.19226255,91199.0,91195.0,0.109654]
[1731739027610,0.19226255,91199.0,91196.0,0.109653]
[1731739027814,0.19226255,91199.0,91197.0,0.109651]
[1731739028741,0.19226255,91199.0,91194.0,0.219312]
[1731739028742,0.0832,91199.0,91198.0,0.1913384]
[1731739029435,0.0832,91199.0,91195.0,0.20237463]
[1731739029654,0.0832,91199.0,91198.0,0.109651]
[1731739031482,0.19226255,91199.0,91193.0,0.1105132]
[1731739031718,0.10906255,91198.0,91193.0,0.1105132]
[1731739031966,0.11604856,91198.0,91193.0,0.1105132]
[1731739032196,0.11604856,91198.0,91193.0,0.0008572]
[1731739032420,0.11604856,91198.0,91193.0,0.1105142]
[1731739033810,0.11604856,91198.0,91193.0,0.0008572]
[1731739034036,0.11604856,91198.0,91195.0,0.109654]
[1731739034492,0.11604856,91198.0,91193.0,0.1105142]
[1731739037134,0.00698601,91198.0,91194.0,0.219312]
[1731739037367,0.00698601,91198.0,91197.0,0.109652]
[1731739037826,0.0832,91199.0,91198.0,0.109651]
[1731739038053,0.005,91214.0,91210.0,0.109637]
[1731739038054,0.0455,91214.0,91210.0,0.109637]
[1731739038316,0.0455,91214.0,91205.0,0.219285]
[1731739038557,0.0455,91214.0,91210.0,0.109637]
[1731739038782,0.0825,91211.0,91210.0,0.109637]
[1731739043070,0.0825,91219.0,91218.0,0.109627]
[1731739043295,0.19156255,91219.0,91218.0,0.109627]
[1731739043547,0.19854983,91219.0,91218.0,0.109627]
[1731739043819,0.08948728,91219.0,91218.0,0.109627]
[1731739048571,0.00870168,91219.0,91218.0,0.109627]
[1731739049301,0.0017144,91219.0,91218.0,0.109627]
[1731739054136,0.0017144,91219.0,91218.0,0.20780245]
[1731739054367,0.0017144,91219.0,91218.0,0.109627]
[1731739054584,0.0017144,91219.0,91218.0,0.44764013]
[1731739054815,0.0017144,91219.0,91218.0,0.30037695]
[1731739055040,0.0017144,91219.0,91218.0,0.30237695]
[1731739055256,0.0017144,91219.0,91218.0,0.32337695]
[1731739055466,4e-07,91219.0,91218.0,0.51724013]
[1731739055705,4e-07,91219.0,91218.0,0.6498749]
[1731739055914,4e-07,91219.0,91218.0,0.48545587]
[1731739056584,4e-07,91219.0,91218.0,0.6983127]
[1731739056794,4e-07,91219.0,91218.0,0.48544735]
[1731739057235,4e-07,91219.0,91218.0,0.69825339]
[1731739057926,4e-07,91219.0,91218.0,0.45297695]
[1731739058628,4e-07,91219.0,91218.0,0.5654531]
[1731739058855,4e-07,91219.0,91218.0,0.53466435]
[1731739059086,0.0016748,91226.0,91225.0,0.109619]
[1731739059296,0.0016748,91226.0,91225.0,0.1913064]
[1731739060003,0.0016748,91226.0,91225.0,0.109619]
[1731739062057,0.0016748,91226.0,91225.0,0.15433568]
[1731739066644,0.0016748,91226.0,91225.0,0.23602308]
[1731739073196,0.0016748,91226.0,91225.0,0.23687998]
[1731739073628,0.0016748,91226.0,91225.0,0.15519258]
[1731739073843,0.0016748,91226.0,91225.0,0.23687998]
[1731739077665,0.0016748,91226.0,91225.0,0.15519258]
[1731739084524,0.0016748,91226.0,91225.0,0.18975405]
[1731739084741,0.0016748,91226.0,91225.0,0.28777112]
[1731739084973,0.0016748,91226.0,91225.0,0.2879314]
[1731739085633,0.0016748,91226.0,91225.0,0.28794544]
[1731739085899,0.0016748,91226.0,91225.0,0.18975405]
[1731739086348,0.0016748,91226.0,91225.0,0.18850405]
[1731739087923,0.0016748,91226.0,91225.0,0.2975666]
[1731739088359,0.0016748,91226.0,91225.0,0.3725666]
[1731739088790,0.0016748,91226.0,91225.0,0.61800997]
[1731739089444,0.0016748,91226.0,91225.0,0.61820313]
[1731739090188,0.0016748,91226.0,91225.0,0.3725666]
[1731739092807,0.0016748,91226.0,91225.0,0.379254]
[1731739093255,0.0016748,91226.0,91225.0,0.377254]
[1731739094516,0.0016748,91226.0,91225.0,0.62302364]
[1731739094925,0.0016748,91226.0,91225.0,0.18650405]
[1731739095179,0.00879136,91226.0,91225.0,0.23562998]
[1731739095389,0.0016748,91226.0,91225.0,0.23562998]
[1731739095601,0.0016748,91226.0,91225.0,0.15394258]
[1731739095602,0.0476748,91226.0,91225.0,0.15394258]
[1731739096016,0.13769136,91226.0,91225.0,0.15394258]
[1731739096876,0.1305748,91226.0,91225.0,0.15394258]
[1731739100327,0.1305748,91226.0,91225.0,0.25228936]
[1731739100563,0.1305748,91226.0,91225.0,0.15394258]
[1731739101186,0.1305748,91226.0,91225.0,0.25228936]
[1731739102104,0.0845748,91226.0,91225.0,0.25228936]
[1731739102317,0.0016748,91226.0,91225.0,0.25228936]
[1731739102551,0.0016748,91226.0,91225.0,0.15394258]
[1731739103863,0.0016748,91226.0,91225.0,0.30150911]
[1731739104081,0.0016748,91226.0,91225.0,0.30150677]
[1731739104285,0.0016748,91226.0,91225.0,0.45976051]
[1731739104750,0.0016748,91226.0,91225.0,0.29556669]
[1731739105444,0.0017152,91237.0,91236.0,0.109605]
[1731739105694,0.0017152,91237.0,91236.0,0.1912924]
[1731739106566,0.0017152,91237.0,91236.0,0.23668076]
[1731739107218,0.0017152,91237.0,91236.0,0.3350418]
[1731739107443,0.0017152,91237.0,91236.0,0.57498461]
[1731739107659,0.0017152,91237.0,91236.0,0.49329721]
[1731739109031,0.0017152,91237.0,91236.0,0.57498461]
[1731739109261,0.0017152,91237.0,91236.0,0.49329721]
[1731739115488,0.0017152,91237.0,91236.0,0.4930191]
[1731739115703,0.0017152,91237.0,91236.0,0.49298804]
[1731739118335,0.0017152,91237.0,91236.0,0.3454652]
[1731739118772,0.0017152,91237.0,91236.0,0.15471525]
[1731739119010,0.0490152,91237.0,91236.0,0.38391044]
[1731739119235,0.0490152,91237.0,91236.0,0.23640265]
[1731739120309,0.1278152,91237.0,91236.0,0.15471525]
[1731739120529,0.1278152,91237.0,91232.0,0.41595753]
[1731739120530,0.023,91236.0,91231.0,0.09834244]
[1731739120764,0.1508152,91237.0,91225.0,0.0008569]
[1731739120765,0.023,91234.0,91225.0,0.0008569]
[1731739121005,0.023,91230.0,91229.0,0.109614]
[1731739121216,0.0703,91230.0,91229.0,0.109614]
[1731739121428,0.1491,91230.0,91229.0,0.109614]
[1731739121862,0.15621521,91230.0,91229.0,0.109614]
[1731739122102,0.15621521,91230.0,91226.0,0.219235]
[1731739122308,0.15621521,91230.0,91229.0,0.109614]
[1731739129162,0.13321521,91230.0,91229.0,0.109614]
[1731739129392,0.00711521,91230.0,91229.0,0.109614]
[1731739129855,0.0017152,91237.0,91236.0,0.109605]
[1731739130076,0.0017152,91237.0,91236.0,0.1912924]
[1731739130290,0.00883584,91237.0,91236.0,0.1912924]
[1731739130496,0.0017152,91237.0,91236.0,0.1912924]
[1731739137430,0.0017152,91237.0,91236.0,0.23555591]
[1731739138147,0.0017152,91237.0,91236.0,0.15386851]
[1731739138364,0.1488152,91237.0,91236.0,0.15386851]
[1731739138582,0.15951996,91237.0,91236.0,0.15386851]
[1731739138839,0.15951996,91237.0,91236.0,0.04426351]
[1731739139278,0.0981,91236.0,91233.0,0.219216]
[1731739139509,0.0981,91236.0,91235.0,0.109607]
[1731739140657,0.08581971,91236.0,91235.0,0.109607]
[1731739142925,0.10881971,91236.0,91235.0,0.109607]
[1731739143757,0.023,91235.0,91234.0,0.109608]
[1731739144021,0.023,91235.0,91233.0,0.04557628]
[1731739144232,0.033718,91235.0,91233.0,0.109609]
[1731739144718,0.023,91232.0,91227.0,0.109616]
[1731739144956,0.023,91230.0,91228.0,0.109614]
[1731739145167,0.023,91230.0,91228.0,0.109615]
[1731739145393,0.0337077,91229.0,91228.0,0.109615]
[1731739146075,0.0337077,91229.0,91226.0,0.0008575]
[1731739146076,0.1571,91228.0,91226.0,0.0008575]
[1731739146304,0.1031,91227.0,91226.0,0.0008575]
[1731739146554,0.11336637,91227.0,91226.0,0.0008575]
[1731739149031,0.11336637,91227.0,91226.0,0.1104745]
[1731739149728,0.10836637,91227.0,91226.0,0.1104745]
[1731739150187,0.11336637,91227.0,91226.0,0.1104745]
[1731739152077,0.11336637,91227.0,91226.0,0.0008575]
[1731739158859,0.16106637,91227.0,91226.0,0.0008575]
[1731739159075,0.51422284,91227.0,91226.0,0.0008575]
[1731739159292,0.005,91205.0,91200.0,0.05014515]
[1731739159502,0.023,91202.0,91201.0,0.16471661]
[1731739159718,0.023,91203.0,91200.0,0.005]
[1731739159935,0.1246,91204.0,91200.0,0.005]
[1731739159936,0.023,91201.0,91200.0,0.005]
[1731739160153,0.142647,91201.0,91200.0,0.005]
[1731739160389,0.3387422,91201.0,91200.0,0.005]
[1731739162565,0.2290952,91201.0,91200.0,0.005]
[1731739162801,0.3387422,91201.0,91200.0,0.005]
[1731739163641,0.3387422,91201.0,91172.0,0.219365]
[1731739163642,0.023,91189.0,91172.0,0.219365]
[1731739163811,0.023,91187.0,91181.0,0.04605064]
[1731739164024,0.023,91185.0,91181.0,0.1105282]
[1731739164229,0.023,91183.0,91181.0,0.0008572]
[1731739164469,0.023,91183.0,91182.0,0.10967]
[1731739164688,0.023,91183.0,91181.0,0.1105282]
[1731739165534,0.023,91183.0,91181.0,0.15447541]
[1731739165883,0.023,91183.0,91181.0,0.15267172]
[1731739166087,0.023,91183.0,91181.0,0.15361821]
[1731739166433,0.023,91183.0,91181.0,0.04394721]
[1731739166639,0.023,91183.0,91180.0,0.109672]
[1731739167286,0.023,91183.0,91181.0,0.109671]
[1731739167515,0.023,91183.0,91182.0,0.10967]
[1731739168585,0.028,91184.0,91182.0,0.10967]
[1731739169018,0.028,91184.0,91178.0,0.219349]
[1731739169226,0.028,91184.0,91183.0,0.109669]
[1731739175768,0.028,91184.0,91180.0,0.1105295]
[1731739176006,0.028,91184.0,91180.0,0.0008575]
[1731739176220,0.028,91184.0,91180.0,0.1105295]
[1731739176432,0.028,91184.0,91181.0,0.109671]
[1731739176661,0.02741753,91184.0,91180.0,0.0008575]
[1731739176880,0.02741753,91184.0,91181.0,0.109671]
[1731739177334,0.02735929,91184.0,91181.0,0.109671]
[1731739177757,0.02735929,91184.0,91183.0,0.109669]
[1731739179618,0.02735929,91184.0,91180.0,0.0008575]
[1731739179815,0.005,91181.0,91180.0,0.0008575]
[1731739180027,0.028,91181.0,91180.0,0.0008575]
[1731739180708,0.1118,91181.0,91180.0,0.0008575]
[1731739191368,0.1118,91181.0,91180.0,0.1105305]
[1731739192034,0.1068,91181.0,91180.0,0.1105305]
[1731739192258,0.0379443,91181.0,91180.0,0.1105305]
[1731739196013,0.028,91181.0,91180.0,0.1105305]
[1731739196461,0.005,91181.0,91180.0,0.1105305]
[1731739196677,0.028,91181.0,91180.0,0.1105305]
[1731739198207,0.023,91183.0,91180.0,0.0008575]
[1731739198421,0.0017158,91184.0,91183.0,0.19143484]
[1731739198636,0.0017158,91184.0,91183.0,0.26763484]
[1731739200609,0.0017158,91184.0,91183.0,0.19143484]
[1731739203013,0.23188164,91184.0,91183.0,0.109669]
[1731739203226,0.1501158,91184.0,91183.0,0.109669]
[1731739203438,0.16007468,91184.0,91183.0,0.109669]
[1731739205693,0.005,91182.0,91180.0,0.0008575]
[1731739205901,0.023,91181.0,91180.0,0.0008575]
[1731739206102,0.03795373,91181.0,91180.0,0.0008575]
[1731739206510,0.03795373,91181.0,91180.0,0.1105305]
[1731739207492,0.03295373,91181.0,91180.0,0.1105305]
[1731739208595,0.00995373,91181.0,91180.0,0.1105305]
[1731739208862,0.00995373,91181.0,91180.0,0.19229634]
[1731739209085,0.0017158,91184.0,91183.0,0.109669]
[1731739211914,0.0017158,91184.0,91183.0,0.20813866]
[1731739212134,0.0017158,91184.0,91183.0,0.109669]
[1731739212564,0.0017158,91184.0,91183.0,0.25741371]
[1731739213256,0.0017158,91184.0,91183.0,0.109669]
[1731739213688,0.0247158,91184.0,91183.0,0.109669]
[1731739214124,0.034675,91184.0,91183.0,0.109669]
[1731739215496,0.034675,91184.0,91182.0,0.10967]
[1731739215725,0.023,91183.0,91182.0,0.109669]
[1731739216201,0.03795749,91183.0,91182.0,0.109669]
[1731739216415,0.03795749,91183.0,91180.0,0.0008575]
[1731739216416,0.033,91181.0,91180.0,0.0008575]
[1731739216838,0.04295405,91181.0,91180.0,0.0008575]
[1731739219317,0.03915611,91181.0,91180.0,0.0008575]
[1731739222443,0.03915611,91181.0,91180.0,0.1105305]
[1731739222444,0.03415611,91181.0,91180.0,0.1105305]
[1731739222660,0.03915611,91181.0,91180.0,0.1105305]
[1731739222882,0.033,91181.0,91180.0,0.1105305]
[1731739223563,0.028,91181.0,91180.0,0.1105305]
[1731739224228,0.0017158,91184.0,91181.0,0.219342]
[1731739224448,0.0017158,91184.0,91183.0,0.109669]
[1731739224656,0.0067158,91184.0,91183.0,0.109669]
[1731739225129,0.0017158,91184.0,91183.0,0.109669]
[1731739226269,0.0017158,91184.0,91183.0,0.54553155]
[1731739226485,0.0017158,91184.0,91183.0,0.5780919]
[1731739226699,0.0017158,91184.0,91183.0,0.39758947]
[1731739226912,0.0017158,91184.0,91183.0,0.50725847]
[1731739227337,0.0017158,91184.0,91183.0,0.55272239]
[1731739227806,0.0017158,91184.0,91183.0,0.30272239]
[1731739228032,0.0017158,91184.0,91183.0,0.15513292]
[1731739231018,0.0017158,91184.0,91183.0,0.109669]
[1731739233349,0.0017158,91184.0,91183.0,0.10824997]
[1731739237196,0.0017158,91184.0,91180.0,0.04538996]
[1731739237405,0.0017158,91184.0,91183.0,0.109669]
[1731739241372,0.0017158,91184.0,91183.0,0.1105269]
[1731739242494,0.0816158,91184.0,91183.0,0.1105269]
[1731739243372,0.0866158,91184.0,91183.0,0.1105269]
[1731739244553,0.0866158,91184.0,91183.0,0.0008579]
[1731739244554,0.1096158,91184.0,91183.0,0.0008579]
[1731739245023,0.12379009,91184.0,91183.0,0.0008579]
[1731739247455,0.16899009,91184.0,91183.0,0.0008579]
[1731739248175,0.16899009,91184.0,91183.0,0.1105269]
[1731739252395,0.12379009,91184.0,91183.0,0.1105269]
[1731739252614,0.11979009,91184.0,91183.0,0.1105269]
[1731739253304,0.12150589,91184.0,91183.0,0.1105269]
[1731739259863,0.11650589,91184.0,91183.0,0.1105269]
[1731739260081,0.12150589,91184.0,91183.0,0.1105269]
[1731739260940,0.11467608,91184.0,91183.0,0.1105269]
[1731739263866,0.1073316,91184.0,91183.0,0.1105269]
[1731739268505,0.1123316,91184.0,91183.0,0.1105269]
[1731739268741,0.26939415,91184.0,91183.0,0.0008579]
[1731739269434,0.27674619,91184.0,91183.0,0.0008579]
[1731739271026,0.25374619,91184.0,91183.0,0.0008579]
[1731739271252,0.25374619,91184.0,91183.0,0.04568207]
[1731739271487,0.25374619,91184.0,91183.0,0.0008579]
[1731739273878,0.24639415,91184.0,91183.0,0.0008579]
[1731739274090,0.25374619,91184.0,91183.0,0.0008579]
[1731739279492,0.36341419,91184.0,91183.0,0.0008579]
[1731739281250,0.38641419,91184.0,91183.0,0.0008579]
[1731739281464,0.48454342,91184.0,91183.0,0.0008579]
[1731739281675,0.48954342,91184.0,91183.0,0.0008579]
[1731739282540,0.39141419,91184.0,91183.0,0.0008579]
[1731739283012,0.43522812,91184.0,91183.0,0.0008579]
[1731739283466,0.39141419,91184.0,91183.0,0.0008579]
[1731739287477,0.39641419,91184.0,91183.0,0.0008579]
[1731739288898,0.41520021,91184.0,91183.0,0.0008579]
[1731739289335,0.39641419,91184.0,91183.0,0.0008579]
[1731739290015,0.4151991,91184.0,91183.0,0.0008579]
[1731739290503,0.4151966,91184.0,91183.0,0.0008579]
[1731739290726,0.39641419,91184.0,91183.0,0.0008579]
[1731739293981,0.39841419,91184.0,91183.0,0.0008579]
[1731739294663,0.41719617,91184.0,91183.0,0.0008579]
[1731739298379,0.41519617,91184.0,91183.0,0.0008579]
[1731739298835,0.39641419,91184.0,91183.0,0.0008579]
[1731739302155,0.25374619,91184.0,91183.0,0.0008579]
[1731739302390,0.005,91172.0,91170.0,0.43874]
[1731739302604,0.005,91172.0,91171.0,0.109684]
[1731739302836,0.0017158,91184.0,91169.0,0.0453]
[1731739302837,0.005,91181.0,91180.0,0.109673]
[1731739303720,0.005,91179.0,91178.0,0.219349]
[1731739303938,0.005,91183.0,91178.0,0.219349]
[1731739304145,0.005,91179.0,91178.0,0.329024]
[1731739304441,0.005,91179.0,91178.0,0.109675]
[1731739304649,0.005,91177.0,91176.0,0.329032]
[1731739304864,0.005,91177.0,91176.0,0.41079546]
[1731739305087,0.005,91177.0,91176.0,0.33311846]
[1731739305316,0.005,91177.0,91176.0,0.44279546]
[1731739305560,0.005,91177.0,91176.0,0.33311846]
[1731739305772,0.0017158,91184.0,91183.0,0.154969]
[1731739306003,0.0017158,91184.0,91183.0,0.23673246]